Cogmind - Beta 13 @@@ ROGUE MODE // 2024.04.04 @ 21:46:15 Player: _An Result: Destroyed by G-47 Trooper with Particle Gun Performance ------------- Evolutions (2) 1000 Regions Visited (5) 1000 Robots Destroyed (19) 95 Value Destroyed (417) 417 Prototype IDs (23) 460 Alien Tech Used (0) 0 Bonus (300) 300 TOTAL SCORE: 3272 Bonus ------- Aligned with FarCom 300 Cogmind --------- Core Integrity 0/550 Matter 290/300 Energy 61/100 System Corruption 0% Temperature Cool (22) Movement Flying (37) Location -8/Materials Parts ------- > --- POWER (1) -------- (None) > --- PROPULSION (4) --- Flight Unit Flight Unit > --- UTILITY (4) ------ (None) > --- WEAPON (2) ------- (None) > --- INVENTORY (5) ---- Aluminum Leg Lightpack 2.0 Improved Terrain Scanner Peak State ------------ > --- POWER ------------ Ion Engine > --- PROPULSION ------- Aluminum Leg Aluminum Leg Flight Unit Flight Unit > --- UTILITY ---------- Small Storage Unit Seismic Detector Hacking Suite > --- WEAPON ----------- Small Laser Assault Rifle > --- INVENTORY -------- Flight Unit Flight Unit Lightpack 2.0 Improved Terrain Scanner Light Armor Plating [Rating: 15] Favorites ----------- Power Ion Engine Engine Ion Engine Propulsion Aluminum Leg Leg Aluminum Leg Flight Unit Flight Unit Utility Small Storage Unit Device Seismic Detector Storage Small Storage Unit Hackware Hacking Suite Protection Light Armor Plating Weapon Assault Rifle Energy Gun Small Laser Ballistic Gun Assault Rifle Impact Weapon Heavy Flail Build | -11 -10 -10 -10 -9 -8 ------- Run | Yrd Mat Min Exi Min Mat Slots Evolved 4 | . . . . . 4 Power . | . . . . . . Propulsion 2 | . . . . . 2 Utility 2 | . . . . . 2 Weapon . | . . . . . . Parts Attached 17 | 7 . . . . 10 Power 1 | 1 . . . . . Engine 1 | 1 . . . . . Core . | . . . . . . Reactor . | . . . . . . Propulsion 9 | 2 . . . . 7 Treads . | . . . . . . Leg 2 | 2 . . . . . Wheel . | . . . . . . Hover . | . . . . . . Flight 7 | . . . . . 7 Utility 4 | 2 . . . . 2 Device 1 | 1 . . . . . Storage 1 | 1 . . . . . Processor . | . . . . . . Hackware 1 | . . . . . 1 Protection 1 | . . . . . 1 Artifact . | . . . . . . Weapon 3 | 2 . . . . 1 Energy Gun 1 | 1 . . . . . Energy Cannon . | . . . . . . Ballistic Gun 1 | 1 . . . . . Ballistic Cannon . | . . . . . . Launcher . | . . . . . . Special Weapon . | . . . . . . Impact Weapon 1 | . . . . . 1 Slashing Weapon . | . . . . . . Piercing Weapon . | . . . . . . Special Melee Weapon . | . . . . . . Unidentified Prototypes . | . . . . . . Parts Lost 10 | . . . . . 10 Power 1 | . . . . . 1 Propulsion 4 | . . . . . 4 Utility 3 | . . . . . 3 Weapon 2 | . . . . . 2 Highest Loss Streak 7 | . . . . . 7 To Critical Strikes . | . . . . . . Average Slot Usage (%) 86 | . 100 100 100 100 59 Engine 11 | . 14 14 14 14 5 Leg 22 | . 28 28 28 28 10 Flight 2 | . . . . . 6 Device 11 | . 14 14 14 14 6 Storage 12 | . 14 14 14 14 9 Hackware 2 | . . . . . 6 Energy Gun 11 | . 14 14 14 14 6 Ballistic Gun 11 | . 14 14 14 14 6 Naked Turns . | . . . . . . Heaviest Build 14 | 14 14 14 14 14 14 Greatest Support 20 | 20 20 20 20 20 20 Greatest Overweight (x) 2 | 2 . . . . 1 Average Overweight (x) . | . . . . . . Largest Inventory Capacity 8 | 8 8 8 8 8 8 Average Capacity 7 | 7 8 8 8 8 7 Most Carried 8 | 1 1 6 8 8 8 Average Carried 5 | . 1 3 5 8 7 Final Capacity 8 | 8 8 8 8 8 5 Final Carried 8 | 1 1 5 8 8 5 Class Distribution -------------------- 97% | Mutant Dominant Class ---------------- Mutant | -10/Materials Mutant | -10/Mines Mutant | -10/Exiles Mutant | -9/Mines Mutant | -8/Materials Resources | -11 -10 -10 -10 -9 -8 ----------- Run | Yrd Mat Min Exi Min Mat Matter Collected 357 | 187 . 110 . . 60 Remotely . | . . . . . . Salvage Created 471 | 18 . 46 . . 407 Parts 29 | 3 . 6 . . 20 Haulers Intercepted . | . . . . . . Recyclers Shooed . | . . . . . . Parts Field Recycled . | . . . . . . Retrieved Matter . | . . . . . . Parts Self-Destructed . | . . . . . . Prevented . | . . . . . . Kills | -11 -10 -10 -10 -9 -8 ------- Run | Yrd Mat Min Exi Min Mat Combat Hostiles Destroyed 18 | . . 3 . . 15 Melee 5 | . . . . . 5 Guns 6 | . . 3 . . 3 Classes Destroyed 5 | 1 . 1 . . 3 Tunneler 1 | 1 . . . . . Swarmer 10 | . . 3 . . 7 Cutter 2 | . . . . . 2 Grunt 3 | . . . . . 3 Sentry 3 | . . . . . 3 Best Kill Streak 12 | 1 . 3 . . 12 Combat Bots Only 12 | . . 3 . . 12 Max Kills in Single Turn 1 | 1 . 1 . . 1 Gunslinging . | . . . . . . Exploded . | . . . . . . Melee 1 | . . . . . 1 Uniques/NPCs Destroyed . | . . . . . . Combat | -11 -10 -10 -10 -9 -8 -------- Run | Yrd Mat Min Exi Min Mat Hostile Shots Fired 130 | . . 17 . . 113 Missed 28 | . . 3 . . 25 Damage Taken 1188 | . . 124 . . 1064 Core 564 | . . 9 . . 555 Absorbed by Shields . | . . . . . . Core Remaining (%) 98 | 100 . . . 96 . Volleys Fired 14 | 3 . 6 . . 5 Largest 2 | 2 . 2 . . 2 Hottest 60 | 60 . 60 . . 60 Shots Fired 28 | 6 . 12 . . 10 Gun 28 | 6 . 12 . . 10 Cannon . | . . . . . . Launcher . | . . . . . . Special . | . . . . . . Kinetic 14 | 3 . 6 . . 5 Thermal 14 | 3 . 6 . . 5 Explosive . | . . . . . . Electromagnetic . | . . . . . . Robot Hit Streak 6 | 2 . 3 . . 6 Robot Miss Streak 4 | 4 . 2 . . 1 Penetration Max . | . . . . . . Secondary Targets 2 | . . 1 . . 1 Max Gunslinging Chain 1 | . . 1 . . 1 Shots Hit Robots 40 | 2 . 6 . . 32 Core Hits 12 | 1 . 3 . . 8 Critical Kills . | . . . . . . Critical Parts Destroyed 5 | . . . . . 5 Critical Strikes 5 | . . . . . 5 Smash 5 | . . . . . 5 Melee Attacks 46 | . . . . . 46 Impact 46 | . . . . . 46 Slashing . | . . . . . . Piercing . | . . . . . . Sneak Attacks . | . . . . . . Combat Hostiles . | . . . . . . Follow-up Attacks . | . . . . . . Damage Inflicted 1273 | 34 . 79 . . 1160 Guns 201 | 34 . 79 . . 88 Cannons . | . . . . . . Explosions . | . . . . . . Melee 1072 | . . . . . 1072 Ramming . | . . . . . . Kinetic 92 | 11 . 25 . . 56 Thermal 109 | 23 . 54 . . 32 Explosive . | . . . . . . Electromagnetic . | . . . . . . Impact 1072 | . . . . . 1072 Slashing . | . . . . . . Piercing . | . . . . . . Highest Corruption . | . . . . . . Average Corruption . | . . . . . . Corruption Purged . | . . . . . . Corruption Blocked . | . . . . . . Overload Shots . | . . . . . . Overflow Damage 269 | . . . . . 269 Projectiles . | . . . . . . Explosions . | . . . . . . Melee 269 | . . . . . 269 Knockbacks 6 | . . . . . 6 Impact 6 | . . . . . 6 Kinetic . | . . . . . . Secondary . | . . . . . . Self-Inflicted Damage . | . . . . . . Shots . | . . . . . . Rammed . | . . . . . . Targets Rammed . | . . . . . . Kicked . | . . . . . . Crushed . | . . . . . . Highest Temperature 16 | . . . . . 16 Average Temperature 5 | . . . . . 5 Received Heat Transfer 342 | . . . . . 342 Siege Activations . | . . . . . . Robots Corrupted . | . . . . . . Combat Hostiles . | . . . . . . Parts Fried 9 | . . . . . 9 Impact Corruptions 10 | . . . . . 10 Robots Melted . | . . . . . . Combat Hostiles . | . . . . . . Parts Melted . | . . . . . . Heat Transferred 250 | 50 . 125 . . 75 Parts Sabotaged . | . . . . . . Parts Stolen . | . . . . . . Parts Stripped . | . . . . . . Power Chain Reactions . | . . . . . . Alert | -11 -10 -10 -10 -9 -8 ------- Run | Yrd Mat Min Exi Min Mat Peak Influence 356 | 5 11 74 . . 356 Initial 4 | . 3 4 . . . Average 41 | . 7 15 . . 81 Maximum Alert Level 1 | . . . . . 1 Low Security (%) 89 | 100 100 100 . 100 76 Level 1 10 | . . . . . 23 Level 2 . | . . . . . . Level 3 . | . . . . . . Level 4 . | . . . . . . Level 5 . | . . . . . . High Security . | . . . . . . Max Security . | . . . . . . Squads Dispatched 4 | . 1 . . . 3 Investigation 2 | . 1 . . . 1 Extermination . | . . . . . . Reinforcement 2 | . . . . . 2 Assault . | . . . . . . Garrison . | . . . . . . Intercept . | . . . . . . Searches Triggered . | . . . . . . Construction Impeded . | . . . . . . Haulers Reinforced . | . . . . . . Active Scanning Responses . | . . . . . . Cargo Convoy Interrupts . | . . . . . . Stealth | -11 -10 -10 -10 -9 -8 --------- Run | Yrd Mat Min Exi Min Mat Distress Signals 1 | . . . . . 1 Communications Jammed . | . . . . . . Distress Signals . | . . . . . . Times Spotted 34 | . 1 3 . . 30 Peak Tracking Total 17 | . 1 3 . . 17 Tactical Retreats 3 | . . . . . 3 Traps | -11 -10 -10 -10 -9 -8 ------- Run | Yrd Mat Min Exi Min Mat Traps Triggered . | . . . . . . Indirectly . | . . . . . . Trap Hack Attempts . | . . . . . . Triggered . | . . . . . . Disarmed . | . . . . . . Reprogrammed . | . . . . . . Reused . | . . . . . . Traps Extracted . | . . . . . . Installed . | . . . . . . Triggered . | . . . . . . Most Traps Carried 3 | . . 3 1 1 . Machines | -11 -10 -10 -10 -9 -8 ---------- Run | Yrd Mat Min Exi Min Mat Machines Disabled . | . . . . . . Max in Single Turn . | . . . . . . Machines Repaired . | . . . . . . Machines Dismantled . | . . . . . . Machines Sabotaged . | . . . . . . Overloaded Fab Kills . | . . . . . . Hacking | -11 -10 -10 -10 -9 -8 --------- Run | Yrd Mat Min Exi Min Mat Machines Accessed 6 | . 3 . 1 . 2 Terminals 5 | . 3 . . . 2 Fabricators . | . . . . . . Repair Stations . | . . . . . . Recycling Units . | . . . . . . Scanalyzers . | . . . . . . Garrison Access . | . . . . . . Total Hacks 11 | . 6 . 1 . 4 Successful 3 | . 2 . 1 . . Failed 8 | . 4 . . . 4 Catastrophic 2 | . 2 . . . . Database Lockouts . | . . . . . . Manual 11 | . 6 . 1 . 4 Terminals 10 | . 6 . . . 4 Fabricators . | . . . . . . Repair Stations . | . . . . . . Recycling Units . | . . . . . . Scanalyzers . | . . . . . . Garrison Access . | . . . . . . Terminal Hacks 2 | . 1 . 1 . . Branch Access Points 1 | . 1 . . . . Derelict Proto ID Bank 1 | . . . 1 . . Fabricator Hacks . | . . . . . . Repair Station Hacks . | . . . . . . Recycling Unit Hacks . | . . . . . . Scanalyzer . | . . . . . . Garrison Access Hacks . | . . . . . . Unauthorized Hacks 1 | . 1 . . . . Terminals 1 | . 1 . . . . Botnet 1 | . 1 . . . . Fabricators . | . . . . . . Repair Stations . | . . . . . . Recycling Units . | . . . . . . Scanalyzers . | . . . . . . Garrison Access . | . . . . . . Data Cores Recovered . | . . . . . . Used . | . . . . . . Hacking Detections 5 | . 3 . . . 2 Full Trace Events 2 | . 1 . . . 1 Feedback Events . | . . . . . . Feedback Blocked . | . . . . . . Robot Schematics Acquired . | . . . . . . Robots Built . | . . . . . . Authchips . | . . . . . . Time . | . . . . . . Total Robot Build Rating . | . . . . . . Part Schematics Acquired . | . . . . . . Parts Built . | . . . . . . Authchips . | . . . . . . Time . | . . . . . . Total Part Build Rating . | . . . . . . Parts Repaired . | . . . . . . Time . | . . . . . . Parts Recycled . | . . . . . . Recycled Matter . | . . . . . . Retrieved Matter . | . . . . . . Retrieved Components . | . . . . . . Parts Scanalyzed . | . . . . . . Part Schematics Acquired . | . . . . . . Parts Damaged . | . . . . . . Bothacking | -11 -10 -10 -10 -9 -8 ------------ Run | Yrd Mat Min Exi Min Mat Used RIF Installer . | . . . . . . Robots Hacked . | . . . . . . Non-combat . | . . . . . . Combat . | . . . . . . Robot Hacks Applied . | . . . . . . Relay Couplers Released . | . . . . . . Fabnet Peak Effective % . | . . . . . . Robots Rewired . | . . . . . . Allies Hacked . | . . . . . . Hacks Repelled . | . . . . . . Allies | -11 -10 -10 -10 -9 -8 -------- Run | Yrd Mat Min Exi Min Mat Total Allies . | . . . . . . Largest Group . | . . . . . . Highest-Rated Group . | . . . . . . Highest-Rated Ally . | . . . . . . Total Orders . | . . . . . . Ally Attacks . | . . . . . . Total Damage . | . . . . . . Kills . | . . . . . . Allies Corrupted . | . . . . . . Allies Melted . | . . . . . . Intel | -11 -10 -10 -10 -9 -8 ------- Run | Yrd Mat Min Exi Min Mat Robot Analysis Total . | . . . . . . Derelict Logs Recovered 1 | . . 1 . . . Drone Launches . | . . . . . . Drone Recoveries . | . . . . . . Exploration | -11 -10 -10 -10 -9 -8 ------------- Run | Yrd Mat Min Exi Min Mat Turns Passed 1375 | 76 117 317 384 46 435 Spaces Moved 1026 | 49 98 228 312 38 301 Core 10 | 9 . . . . 1 Treads . | . . . . . . Legs 929 | 40 98 228 312 38 213 Wheels . | . . . . . . Hover . | . . . . . . Flight 87 | . . . . . 87 Fastest Speed 31 | 50 120 120 120 120 31 Average Speed 112 | 114 120 120 120 120 94 Slowest Speed 150 | 150 120 120 120 120 120 Overloaded Moves . | . . . . . . Propulsion Burnouts . | . . . . . . Robots Hopped 7 | . . . . . 7 Cave-ins Triggered . | . . . . . . Exploration Rate (%) 32 | 5 28 55 61 20 24 Regions Visited 5 Branch Regions 3 Pre-discovered Areas . | . . . . . . Known Exits Taken 1 | . 1 . . . . Unknown Exits Taken 4 | 1 . 1 1 1 . Scrap Searched 1 | . . 1 . . . Spaces Dug . | . . . . . . Terrain Destroyed . | . . . . . . Melee . | . . . . . . Projectile . | . . . . . . AOE . | . . . . . . Terrain Rammed . | . . . . . . Walls Destroyed . | . . . . . . Machines Disabled . | . . . . . . Actions | -11 -10 -10 -10 -9 -8 --------- Run | Yrd Mat Min Exi Min Mat Total 1142 | 60 97 260 321 39 365 Wait 33 | . . 19 9 . 5 Move 1007 | 48 97 227 311 37 287 Hop 7 | . . . . . 7 Pick Up 12 | 2 . 6 1 1 2 Fast Attach 10 | 6 . . . . 4 Attach 7 | 1 . . . . 6 Detach 1 | . . . . . 1 Swap . | . . . . . . Drop 5 | . . 2 . 1 2 Fire 14 | 3 . 6 . . 5 Melee 46 | . . . . . 46 Ram . | . . . . . . Kick . | . . . . . . Crush . | . . . . . . Escape Stasis . | . . . . . . Rewire . | . . . . . . Trap . | . . . . . . Miscellaneous . | . . . . . . Route ------- -11/Scrapyard -10/Materials (discovered 2 exits: *Min x2) -10/Mines (discovered 2 exits: [*Mat] / *Exi) -10/Exiles (discovered 2 exits: [*Min x2]) -9/Mines -8/Materials (discovered 2 exits: Fac / *Sto) History --------- Turn | Location | Event 11 | -11/Scrapyard | Discovered new exit (range 14) 77 | -11/Scrapyard | Entered Materials 121 | -10/Materials | Identified exit to Mines 194 | -10/Materials | Entered Mines 237 | -10/Mines | Found a hidden stash of uninstalled traps 273 | -10/Mines | Learned location of 2 exits from Materials 299 | -10/Mines | Discovered new exit (range 15) 318 | -10/Mines | Build established: Mutant 506 | -10/Mines | Deemed a non-threat by the Exiles lab entrance 506 | -10/Mines | Discovered new exit (range 5) 511 | -10/Mines | Entered Exiles 527 | -10/Exiles | Discovered new exit (range 15) 544 | -10/Exiles | Met 8R-AWN 562 | -10/Exiles | Met EX-HEX 593 | -10/Exiles | Met EX-BIN 663 | -10/Exiles | Aligned with FarCom system 664 | -10/Exiles | Given EX-Vault access code 764 | -10/Exiles | Opened EX-Vault 782 | -10/Exiles | Found Lightpack 2.0 806 | -10/Exiles | Warned to stay clear of 0b10 Research branches 839 | -10/Exiles | Met EX-DEC 881 | -10/Exiles | Discovered new exit (range 14) 895 | -10/Exiles | Left Exiles lab with Lightpack 2.0 895 | -10/Exiles | Entered Mines 927 | -9/Mines | Discovered new exit (range 7) 941 | -9/Mines | Entered Materials 941 | -8/Materials | Evolved 4 slots: Propulsion x2, Utility x2 942 | -8/Materials | Identified exit to Storage 942 | -8/Materials | Identified exit to Factory 1317 | -8/Materials | Lost 7 parts (1p4n1u1w) 1321 | -8/Materials | Core integrity fell below 50% 1355 | -8/Materials | Core integrity fell below 20% 1376 | -8/Materials | Destroyed by G-47 Trooper with Particle Gun Last Messages --------------- Heat Sink fried. G-50 Soldier knocked back. Hacking Suite destroyed. Y-45 Defender suffers critical hit (Smash). Destroyed Lgt. Treads. Y-45 Defender system corrupted by crushing effect. Y-45 Defender system terminally corrupted. Heat Sink fried. Hvy. Assault Rifle fried. G-50 Soldier suffers critical hit (Smash). Destroyed Lgt. Angular Momentum Engine. G-50 Soldier system corrupted by crushing effect. Hvy. Flail destroyed. Acquired Flight Unit. Dropped Sml. Storage Unit. Acquired 60 matter. Lgt. Armor Plating destroyed. Acquired Flight Unit. Map ----- +----------------------------------------------------+ | ????# #??????????# ####### #? | | ????# ############ #?????###########? | | ????# #????????????????? | | ?####+############ #????????????????? | | ?# #?????????# #????????????????? | | ?# #?????????# #????????????????? | | ?# ! #?????????# #????????????????? | | ?# #?????????# #????????????????? | | ?# """ #?????????# #????????????????? | | ?# """ #?????????# #????????????????? | | ?# """ #?????????# #????????????????? | | ?#######?????????# #????????????????? | | ?????????????????# #??????????##????? | | ?????????????????# #?????? [????? | | ????????????##+### #### = [[#??? | | ??########??# !!#??? | | ??# ! ?# H !!#??? | | ??# ?# ##/###### !!#??? | | ??# "?# # g ?????? !!???? | | ??? ![ "?# # ????????#####???? | | ???? [! T?# # !! ???????????????? | | ????? "?# # !! #??????????????? | | ?????? "?# # !! #??????????????? | | ??????? ?# # #??????????????? | | ?########/### ##########????????????? | | # ==!#=g @o ????????? | | # """g#=g[ ????????? | | # """%+%g##+#########/## ????????? | | # """[#%=# #???????????????????? | | # !g*#*=# " #???????????????????? | | # !#### T ]] #???????????????????? | | ########??# " ]! #???????????????????? | | ??????????# ] #???????????????????? | | ??????????# ! #???????????????????? | | ??????????########???????????????????? | | ?????????????????????????????????????? | | ?????????????????????????????????????? | | ?????????????????????????????????????? | | ?????????????????????????????????????? | | ?????????????????????????????????????? | | ?????????????????????????????????????? | | ?????????????????????????????????????? | | ?????????????????????????????????????? | | | | | | | | | | | | | | | +----------------------------------------------------+ Best States ------------- Heat Dissipation 31 Energy Generation 10 Energy Capacity 250 Matter Stores 300 Matter Capacity 300 Sight Range 16 Terrain Scan Density 10 Evasion (%) 63 Offensive Hacking 10 Item Schematics ----------------- None Robot Schematics ------------------ None Fabricated ------------ Nothing Alien Tech Used ----------------- None Achievements -------------- None Challenges ------------ None Game ------ Seed ChromaticFlightRailgun Manual? 0 Play Time 00:14:06 Cumulative 14.6 hours Start 2024.04.04 @ 21:31:36 End 2024.04.04 @ 21:46:15 Sessions 1 Manual Loads 0 Difficulty Rogue Special Mode None Game No. 26 Rogue 26 Adventurer 0 Explorer 0 Win Type - Total 0 Types 0/0/0/0/0/0/0/0/0 Lore% 13 Gallery% 27 Achievement% 24 Wizard Run 0 Options --------- Layout 1 ASCII 0 Keyboard 1 Movement Numpad Keybinds 0 Fullscreen 1 Font 32/SmallcapsGlow Map View 50x35 Zoom Use 0% Tactical HUD 0 Map Filters NONE Filters NONE Steam 1 RUN: af879ef4-88db-4d46-8dfe-26f3132d805b